bitfinex-derivatives/quotes_SOLF0:USTF0_20260226
["timestamp","ask_amount","ask_price","bid_price","bid_amount"]
[1772120173034,35.43635357,85.719,85.61,35.98779999]
[1772120173231,21.48560709,85.74,85.62,21.48560709]
[1772120173434,35.43635357,85.745,85.653,35.98779999]
[1772120173638,35.43635357,85.789,85.661,35.98779999]
[1772120173843,35.43635357,85.787,85.671,35.98779999]
[1772120174135,40.6899232,85.787,85.671,35.98779999]
[1772120174337,40.6899232,85.787,85.681,35.98779999]
[1772120174338,35.43635357,85.787,85.681,35.98779999]
[1772120174541,35.43635357,85.813,85.706,35.98779999]
[1772120174940,10.4922,85.775,85.706,35.98779999]
[1772120175337,35.43635357,85.806,85.71,35.98779999]
[1772120175538,10.4862,85.825,85.725,35.98779999]
[1772120176038,35.43635357,85.846,85.743,35.98779999]
[1772120176039,10.4839,85.844,85.743,35.98779999]
[1772120176241,35.43635357,85.846,85.743,35.98779999]
[1772120176637,35.43635357,85.846,85.746,35.98779999]
[1772120177043,10.4876,85.813,85.746,35.98779999]
[1772120177241,10.4876,85.813,85.721,35.98779999]
[1772120177441,35.43635357,85.813,85.721,35.98779999]
[1772120177646,10.4895,85.798,85.721,35.98779999]
[1772120178047,35.43635357,85.799,85.695,35.98779999]
[1772120178244,21.48560709,85.8,85.695,35.98779999]
[1772120178245,10.4933,85.766,85.695,35.98779999]
[1772120178443,35.43635357,85.773,85.695,35.98779999]
[1772120178746,45.93075357,85.758,85.661,35.98779999]
[1772120178939,35.43635357,85.757,85.661,35.98779999]
[1772120179139,35.43635357,85.776,85.678,35.98779999]
[1772120179337,35.43635357,85.776,85.641,35.98779999]
[1772120179538,35.43635357,85.759,85.641,35.98779999]
[1772120180049,10.4969,85.737,85.647,35.98779999]
[1772120180548,10.4969,85.737,85.652,35.98779999]
[1772120180744,35.43635357,85.752,85.652,35.98779999]
[1772120180944,35.43635357,85.752,85.653,35.98779999]
[1772120181343,35.43635357,85.735,85.653,35.98779999]
[1772120181755,10.4996,85.715,85.601,35.98779999]
[1772120181956,21.48560709,85.73,85.608,35.98779999]
[1772120181957,35.43635357,85.714,85.608,35.98779999]
[1772120182355,35.43635357,85.738,85.62,21.48560709]
[1772120182546,35.43635357,85.738,85.621,35.98779999]
[1772120182748,35.43635357,85.738,85.642,35.98779999]
[1772120182951,35.43635357,85.736,85.642,35.98779999]
[1772120183150,35.43635357,85.729,85.617,35.98779999]
[1772120183752,35.43635357,85.729,85.621,35.98779999]
[1772120183947,35.43635357,85.729,85.647,35.98779999]
[1772120184457,10.4965,85.74,85.652,35.98779999]
[1772120185147,10.4981,85.727,85.652,35.98779999]
[1772120185350,35.43635357,85.752,85.652,35.98779999]
[1772120185751,35.43635357,85.74,85.654,35.98779999]
[1772120186154,35.43635357,85.74,85.58,184.6165]
[1772120186155,35.43635357,85.74,85.63,33.5532657]
[1772120186452,35.22430629,85.717,85.632,33.5532657]
[1772120186849,10.5019,85.697,85.632,33.5532657]
[1772120187251,10.5033,85.685,85.604,33.5532657]
[1772120187553,35.22430629,85.709,85.604,33.5532657]
[1772120187952,10.5007,85.706,85.619,33.5532657]
[1772120188356,35.22430629,85.709,85.619,33.5532657]
[1772120188559,10.5039,85.68,85.619,33.5532657]
[1772120189258,10.5039,85.68,85.603,10.5133]
[1772120189653,10.5039,85.68,85.596,33.5532657]
[1772120189961,10.5054,85.668,85.596,33.5532657]
[1772120191556,10.5067,85.657,85.596,33.5532657]
[1772120192156,10.508,85.647,85.576,10.5165]
[1772120192468,35.22430629,85.663,85.573,33.5532657]
[1772120192962,35.22430629,85.663,85.574,10.5168]
[1772120193161,35.22430629,85.622,85.519,33.5532657]
[1772120193464,35.22430629,85.622,85.519,38.80530652]
[1772120193666,10.5111,85.621,85.557,10.5189]
[1772120194062,10.5111,85.621,85.552,33.5532657]
[1772120194366,10.5125,85.61,85.552,33.5532657]
[1772120194563,35.22430629,85.659,85.552,33.5532657]
[1772120194764,163.3712,85.692,85.552,33.5532657]
[1772120194765,35.22430629,85.639,85.552,33.5532657]
[1772120194964,35.22430629,85.639,85.543,10.5207]
[1772120195568,10.5123,85.612,85.543,10.5207]
[1772120195971,35.22430629,85.639,85.547,33.5532657]
[1772120196170,10.5107,85.624,85.547,33.5532657]
[1772120196666,10.5094,85.635,85.563,10.5182]
[1772120196870,35.22430629,85.639,85.547,33.5532657]
[1772120197173,10.5103,85.628,85.563,33.5532657]
[1772120197366,35.22430629,85.639,85.563,33.5532657]
[1772120197875,10.5115,85.618,85.553,10.5193]
[1772120198266,35.22430629,85.639,85.554,33.5532657]
[1772120198469,35.22430629,85.662,85.554,33.5532657]
[1772120198669,10.5073,85.652,85.594,10.5143]
[1772120198866,10.5073,85.652,85.586,33.5532657]
[1772120199173,35.22430629,85.662,85.586,33.5532657]
[1772120199668,35.22430629,85.699,85.586,33.5532657]
[1772120199968,35.22430629,85.699,85.622,10.5109]
[1772120200173,35.22430629,85.696,85.532,33.5532657]
[1772120200373,35.22430629,85.696,85.443,14.20184201]
[1772120200374,35.22430629,85.696,85.571,33.5532657]
[1772120200563,35.22430629,85.696,85.57,32.20748474]
[1772120200564,35.22430629,85.696,85.604,33.5532657]
[1772120201067,10.5049,85.672,85.609,33.5532657]
[1772120201268,35.22430629,85.696,85.609,33.5532657]
[1772120202067,35.22430629,85.719,85.609,33.5532657]
[1772120202376,163.2792,85.741,85.609,33.5532657]
[1772120202377,35.22430629,85.697,85.609,33.5532657]
[1772120202974,20.9914,85.747,85.634,33.5532657]
[1772120202975,35.22430629,85.72,85.634,33.5532657]
[1772120203466,20.9848,85.774,85.606,163.5348]
[1772120203467,35.22430629,85.744,85.657,33.5532657]
[1772120203666,35.22430629,85.744,85.611,33.5532657]
[1772120203867,35.22430629,85.729,85.611,33.5532657]
[1772120204072,35.22430629,85.769,85.647,33.5532657]
[1772120204277,35.22430629,85.769,85.619,5.25324294]
[1772120204278,35.22430629,85.769,85.651,33.5532657]
[1772120204576,10.4966,85.74,85.676,33.5532657]
[1772120204971,35.22430629,85.769,85.676,33.5532657]
[1772120205580,35.22430629,85.769,85.689,10.5027]
[1772120205879,35.22430629,85.769,85.676,33.5532657]
[1772120206581,35.22430629,85.759,85.652,33.5532657]
[1772120206776,35.22430629,85.722,85.628,33.5532657]
[1772120207377,10.502,85.696,85.638,10.5089]
[1772120207576,35.22430629,85.722,85.639,33.5532657]
[1772120207981,35.22430629,85.745,85.666,10.5055]
[1772120208381,10.4981,85.728,85.666,10.5055]
[1772120209582,10.4968,85.738,85.675,10.5044]
[1772120210284,35.22430629,85.745,85.666,33.5532657]
[1772120210881,35.22430629,85.769,85.687,33.5532657]
[1772120211483,163.105,85.832,85.64,177.67024201]
[1772120211484,35.22430629,85.809,85.691,33.5532657]
[1772120211782,35.22430629,85.809,85.711,33.5532657]
[1772120212385,35.22430629,85.806,85.711,33.5532657]
[1772120212687,10.4923,85.775,85.719,10.499]
[1772120212884,35.22430629,85.806,85.719,33.5532657]
[1772120213587,10.4907,85.788,85.728,10.4979]
[1772120213882,35.22430629,85.806,85.719,33.5532657]
[1772120214085,35.22430629,85.806,85.731,33.5532657]
[1772120214280,35.22430629,85.806,85.736,10.497]
[1772120214681,10.4865,85.822,85.731,33.5532657]
[1772120214886,35.22430629,85.829,85.731,33.5532657]
[1772120215288,35.22430629,85.829,85.744,10.4959]
[1772120215587,35.22430629,85.829,85.75,41.94120744]
[1772120215782,35.22430629,85.829,85.752,10.495]
[1772120216091,35.22430629,85.829,85.75,41.94120744]
[1772120216993,10.4858,85.828,85.772,10.4925]
[1772120217282,32.67198906,85.849,85.75,41.94120744]
[1772120217485,10.4858,85.828,85.75,41.94120744]
[1772120217887,32.67198906,85.849,85.75,41.94120744]
[1772120218084,10.4857,85.829,85.77,8.38794174]
[1772120218291,10.4857,85.829,85.769,10.4929]
[1772120218488,32.67198906,85.849,85.75,41.94120744]
[1772120219186,32.67198906,85.846,85.75,33.5532657]
[1772120219380,32.67198906,85.829,85.731,33.07427228]
[1772120219581,10.4875,85.814,85.762,10.4937]
[1772120219783,32.67198906,85.829,85.75,8.38794174]
[1772120220185,32.67198906,85.829,85.731,33.07427228]
[1772120220592,32.67198906,85.819,85.731,33.07427228]
[1772120221391,10.49,85.794,85.741,10.4963]
[1772120221784,32.67198906,85.819,85.741,10.4963]
[1772120221985,32.67198906,85.819,85.732,10.4974]
[1772120222182,32.67198906,85.819,85.731,33.07427228]
[1772120222692,32.67198906,85.816,85.71,8.38794174]
[1772120222881,32.67198906,85.816,85.711,33.07427228]
[1772120223089,32.67198906,85.839,85.751,33.07427228]
[1772120223589,32.67198906,85.839,85.77,41.46221402]
[1772120223890,32.67198906,85.839,85.771,33.07427228]
[1772120224085,10.4845,85.838,85.786,10.4908]
[1772120224282,233.36,85.875,85.771,33.07427228]
[1772120224485,32.26171816,85.874,85.771,33.07427228]
[1772120225186,32.26171816,85.899,85.811,34.38580291]
[1772120225583,32.26171816,85.899,85.83,34.38580291]
[1772120225983,32.26171816,85.899,85.804,34.38580291]
[1772120226194,32.26171816,85.879,85.804,34.38580291]
[1772120226488,10.4804,85.872,85.812,10.4876]
[1772120226688,32.26171816,85.879,85.804,34.38580291]
[1772120226995,10.4833,85.848,85.793,10.49]
[1772120227194,32.26171816,85.879,85.78,34.38580291]
[1772120227590,10.4847,85.836,85.78,34.38580291]
[1772120227790,32.26171816,85.809,85.725,34.38580291]
[1772120228384,32.26171816,85.809,85.731,34.38580291]
[1772120230094,32.26171816,85.839,85.731,34.38580291]
[1772120230285,10.4893,85.8,85.743,10.4961]
[1772120231196,10.488,85.81,85.743,10.4961]
[1772120231495,32.26171816,85.839,85.731,34.38580291]
[1772120232297,32.26171816,85.831,85.731,34.38580291]
[1772120232494,32.26171816,85.807,85.731,34.38580291]
[1772120232686,32.26171816,85.832,85.731,34.38580291]
[1772120233091,32.26171816,85.858,85.751,34.38580291]
[1772120233395,32.26171816,85.881,85.771,34.38580291]
[1772120233595,10.4813,85.864,85.803,10.4888]
[1772120234297,10.4802,85.874,85.812,10.4876]
[1772120234494,10.4802,85.874,85.812,44.87340291]
[1772120234700,32.26171816,85.904,85.813,34.38580291]
[1772120235200,32.26171816,85.904,85.791,32.53496652]
[1772120236392,32.26171816,85.904,85.813,32.53496652]
[1772120236797,34.19248118,85.899,85.813,32.53496652]
[1772120236998,10.4826,85.854,85.796,10.4895]
[1772120237197,10.4826,85.854,85.788,32.53496652]
[1772120237394,10.4825,85.855,85.791,32.53496652]
[1772120237703,10.4825,85.855,85.698,14.16372147]
[1772120237704,34.19248118,85.877,85.767,32.53496652]
[1772120237891,34.19248118,85.877,85.771,32.53496652]
[1772120238095,34.19248118,85.877,85.792,32.53496652]
[1772120238493,34.19248118,85.874,85.771,32.53496652]
[1772120238794,10.4837,85.845,85.788,10.4906]
[1772120239000,34.19248118,85.866,85.771,32.53496652]
[1772120239294,32.10155524,85.87,85.771,32.53496652]
[1772120239295,34.19248118,85.841,85.771,32.53496652]
[1772120239497,34.19248118,85.841,85.747,32.53496652]
[1772120240095,34.19248118,85.841,85.75,32.53496652]
[1772120240601,34.19248118,85.841,85.773,32.53496652]
[1772120240899,34.19248118,85.841,85.75,32.53496652]
[1772120241592,34.19248118,85.839,85.75,32.53496652]
[1772120242199,10.4905,85.789,85.736,10.4969]
[1772120242499,34.19248118,85.813,85.721,32.53496652]
[1772120242800,34.19248118,85.836,85.721,32.53496652]
[1772120242996,34.19248118,85.836,85.742,43.03116652]
[1772120243196,34.19248118,85.836,85.742,32.53496652]
[1772120243400,34.19248118,85.808,85.723,10.4985]
[1772120243593,32.10155524,85.83,85.721,32.53496652]
[1772120243796,34.19248118,85.832,85.721,32.53496652]
[1772120244098,34.19248118,85.832,85.755,32.53496652]
[1772120244499,10.4871,85.817,85.766,10.4933]
[1772120244699,34.19248118,85.832,85.766,10.4933]
[1772120244902,34.19248118,85.869,85.792,10.4901]
[1772120245101,34.19248118,85.869,85.766,32.53496652]
[1772120245601,34.19248118,85.869,85.77,32.53496652]
[1772120245804,34.19248118,85.869,85.781,32.53496652]
[1772120245996,10.4829,85.852,85.781,32.53496652]
[1772120246195,32.10155524,85.9,85.781,32.53496652]
[1772120246396,34.38087032,85.899,85.781,32.53496652]
[1772120246599,34.38087032,85.899,85.801,32.39162383]
[1772120246794,10.4794,85.88,85.832,10.4852]
[1772120247202,34.38087032,85.899,85.824,32.39162383]
[1772120247700,10.4793,85.881,85.824,32.39162383]
[1772120247896,34.38087032,85.899,85.824,32.39162383]
[1772120248196,20.9475,85.927,85.824,32.39162383]
[1772120248197,34.38087032,85.926,85.824,32.39162383]
[1772120248499,34.38087032,85.904,85.824,32.39162383]
[1772120248901,34.38087032,85.899,85.801,32.39162383]
[1772120249106,34.38087032,85.923,85.801,32.39162383]
[1772120249299,20.9472,85.928,85.83,8.36616813]
[1772120249300,34.38087032,85.919,85.83,8.36616813]
[1772120249503,10.4796,85.879,85.825,32.39162383]
[1772120249701,34.38087032,85.899,85.825,32.39162383]
[1772120250097,34.38087032,85.899,85.837,10.4846]
[1772120250098,10.4782,85.89,85.837,10.4846]
[1772120250303,34.38087032,85.899,85.825,32.39162383]
[1772120251201,34.38087032,85.899,85.832,10.4852]
[1772120252206,8.36837833,85.91,85.836,32.39162383]
[1772120252809,34.38087032,85.921,85.836,32.39162383]
[1772120253211,10.4764,85.905,85.847,10.4834]
[1772120253405,34.38087032,85.936,85.85,40.76000216]
[1772120253908,34.38087032,85.929,85.85,32.39162383]
[1772120254299,10.4763,85.906,85.852,10.4827]
[1772120254609,8.36837833,85.95,85.861,32.39162383]
[1772120254805,34.38087032,85.953,85.88,10.4793]
[1772120254806,10.4724,85.938,85.88,10.4793]
[1772120255104,10.4724,85.938,85.87,8.36837833]
[1772120255105,34.38087032,85.953,85.871,32.39162383]
[1772120256112,34.38087032,85.975,85.891,32.39162383]
[1772120256507,34.38087032,85.92,85.846,32.39162383]
[1772120257112,34.38087032,85.92,85.8,171.53277833]
[1772120257113,34.38087032,85.949,85.851,32.39162383]
[1772120257713,10.4745,85.92,85.862,10.4815]
[1772120257909,10.4745,85.92,85.851,32.39162383]
[1772120258105,10.4745,85.92,85.861,10.4817]
[1772120258607,34.24442542,85.939,85.851,32.39162383]
[1772120259409,10.4775,85.896,85.851,32.39162383]
[1772120259707,34.24442542,85.918,85.83,8.36837833]
[1772120260012,34.24442542,85.897,85.827,30.97254542]
[1772120260401,34.24442542,85.897,85.805,30.97254542]
[1772120260613,34.24442542,85.897,85.765,14.18775448]
[1772120260614,34.24442542,85.897,85.811,30.97254542]
[1772120260913,34.24442542,85.897,85.82,8.36837833]
[1772120261413,34.24442542,85.897,85.801,30.97254542]
[1772120261608,10.4797,85.877,85.821,30.97254542]
[1772120261808,34.24442542,85.897,85.8,39.34092375]
[1772120262005,34.24442542,85.897,85.801,30.97254542]
[1772120262510,10.4826,85.854,85.801,30.97254542]
[1772120262710,34.24442542,85.897,85.801,30.97254542]
[1772120263309,34.24442542,85.879,85.801,30.97254542]
[1772120263613,34.24442542,85.859,85.778,30.97254542]
[1772120264014,10.4845,85.838,85.778,30.97254542]
[1772120264417,34.24442542,85.859,85.76,8.36837833]
[1772120264611,10.4855,85.83,85.761,41.46644542]
[1772120264813,34.24442542,85.859,85.761,30.97254542]
[1772120265217,162.9998,85.888,85.761,30.97254542]
[1772120265218,34.24442542,85.839,85.761,30.97254542]
[1772120265811,163.0149,85.88,85.761,30.97254542]
[1772120265812,42.61280375,85.86,85.761,30.97254542]
[1772120266616,10.485,85.835,85.761,30.97254542]
[1772120267118,10.485,85.835,85.774,30.97254542]
[1772120267817,10.4837,85.845,85.785,10.4909]
[1772120268021,10.4837,85.845,85.774,30.97254542]
[1772120268022,42.61280375,85.86,85.774,30.97254542]
[1772120268612,10.4858,85.828,85.774,30.97254542]
[1772120268917,42.61280375,85.86,85.774,30.97254542]
[1772120269116,42.61280375,85.88,85.781,30.97254542]
[1772120269322,10.4811,85.867,85.814,10.4874]
[1772120269511,34.24442542,85.839,85.761,30.97254542]
[1772120269713,34.24442542,85.839,85.674,35.58648543]
[1772120269714,34.24442542,85.799,85.711,30.97254542]
[1772120270015,8.36837833,85.86,85.711,30.97254542]
[1772120270016,34.24442542,85.779,85.711,30.97254542]
[1772120270417,34.24442542,85.8,85.713,30.97254542]
[1772120270616,42.61280375,85.8,85.713,30.97254542]
[1772120271018,10.4916,85.781,85.713,30.97254542]
[1772120271318,42.61280375,85.8,85.713,30.97254542]
[1772120271512,10.4914,85.782,85.713,41.47224542]
[1772120271711,42.61280375,85.8,85.714,30.97254542]
[1772120272315,10.491,85.785,85.715,10.4995]
[1772120273313,10.491,85.785,85.715,41.47204542]
[1772120273511,10.491,85.785,85.718,30.97254542]
[1772120274515,42.61280375,85.8,85.718,30.97254542]
[1772120274720,10.4923,85.774,85.718,30.97254542]
[1772120275516,10.4912,85.784,85.719,30.97254542]
[1772120276119,10.4922,85.775,85.725,10.4983]
[1772120276326,10.4922,85.775,85.719,30.97254542]
[1772120276723,10.4922,85.775,85.68,8.36837833]
[1772120276724,42.61280375,85.8,85.705,10.5007]
[1772120277831,42.61280375,85.8,85.706,33.15776305]
[1772120278126,42.61280375,85.8,85.711,33.15776305]
[1772120278327,34.24442542,85.8,85.73,8.36837833]
[1772120278632,34.17150669,85.82,85.751,33.15776305]
[1772120279027,10.486,85.826,85.767,10.4931]
[1772120279737,10.4847,85.837,85.77,41.52614138]
[1772120279927,34.17150669,85.841,85.771,33.15776305]
[1772120280235,42.53988502,85.86,85.771,33.15776305]
[1772120280635,34.17150669,85.86,85.771,33.15776305]
[1772120280938,34.17150669,85.882,85.811,33.15776305]
[1772120281434,34.17150669,85.909,85.811,33.15776305]
[1772120281938,34.17150669,85.889,85.811,33.15776305]
[1772120282333,34.17150669,85.889,85.747,49.36090283]
[1772120282334,34.17150669,85.889,85.789,33.15776305]
[1772120282526,42.53988502,85.89,85.8,8.36837833]
[1772120282731,34.17150669,85.89,85.801,33.15776305]
[1772120282925,34.17150669,85.89,85.789,5.2431233]
[1772120282926,34.17150669,85.89,85.821,33.15776305]
[1772120283433,34.17150669,85.89,85.837,10.4845]
[1772120283732,34.17150669,85.89,85.821,33.15776305]
[1772120283942,10.4768,85.902,85.845,10.4836]
[1772120284126,34.17150669,85.914,85.821,33.15776305]
[1772120284327,34.17150669,85.914,85.852,10.4827]
[1772120284627,34.17150669,85.909,85.821,33.15776305]
[1772120284831,34.17150669,85.87,85.8,41.52614138]
[1772120285029,34.17150669,85.87,85.8,33.15776305]
[1772120285030,42.53988502,85.87,85.8,33.15776305]
[1772120285436,10.4828,85.852,85.8,33.15776305]
[1772120285632,42.53988502,85.87,85.8,33.15776305]
[1772120286034,34.17150669,85.87,85.8,33.15776305]
[1772120286234,34.17150669,85.87,85.78,41.52614138]
[1772120286432,42.53988502,85.87,85.781,33.15776305]
[1772120286833,34.17150669,85.849,85.769,10.4929]
[1772120287030,34.17150669,85.849,85.761,33.15776305]
[1772120287337,34.17150669,85.849,85.738,163.2817]
[1772120287338,10.4828,85.852,85.785,33.15776305]
[1772120288635,34.17150669,85.849,85.766,33.15776305]
[1772120289035,10.4859,85.827,85.766,33.15776305]
[1772120289235,34.17150669,85.849,85.766,33.15776305]
[1772120290041,34.17150669,85.849,85.742,33.15776305]
[1772120290242,10.4882,85.809,85.746,10.4957]
[1772120290535,10.4882,85.809,85.742,33.15776305]
[1772120290738,10.4892,85.8,85.744,10.496]
[1772120291137,10.4892,85.8,85.742,33.15776305]
[1772120291836,34.17150669,85.789,85.72,33.15776305]
[1772120292238,34.17150669,85.789,85.722,33.15776305]
[1772120292443,34.17150669,85.819,85.722,33.15776305]
[1772120292839,34.17150669,85.849,85.757,33.15776305]
[1772120293738,34.17150669,85.849,85.761,33.15776305]
[1772120294337,10.4838,85.844,85.783,33.15776305]
[1772120294532,8.36837833,85.88,85.783,33.15776305]
[1772120294742,10.4825,85.855,85.786,10.4908]
[1772120294943,8.36837833,85.86,85.787,33.15776305]
[1772120295143,42.53988502,85.86,85.787,33.15776305]
[1772120295343,10.4843,85.84,85.787,33.15776305]
[1772120296144,10.4853,85.832,85.787,33.15776305]
[1772120296342,42.53988502,85.86,85.766,33.15776305]
[1772120296737,34.17150669,85.837,85.744,33.15776305]
[1772120296939,34.17150669,85.819,85.744,33.15776305]
[1772120297347,10.4883,85.807,85.753,10.4948]
[1772120297845,34.17150669,85.819,85.73,8.36837833]
[1772120298049,34.17150669,85.799,85.722,33.15776305]
[1772120299741,10.4928,85.77,85.722,33.15776305]
[1772120300045,34.17150669,85.779,85.698,33.15776305]
[1772120300546,34.17150669,85.806,85.701,33.15776305]
[1772120300750,34.17150669,85.819,85.721,33.15776305]
[1772120302048,34.17150669,85.839,85.741,33.15776305]
[1772120302249,34.17150669,85.839,85.761,33.15776305]
[1772120302445,8.36837833,85.86,85.76,8.36837833]
[1772120302446,8.36837833,85.86,85.784,33.15776305]
[1772120302951,10.4833,85.848,85.793,10.49]
[1772120303349,42.53988502,85.88,85.794,33.15776305]
[1772120304152,10.4825,85.855,85.794,33.15776305]
[1772120304352,42.53988502,85.88,85.794,33.15776305]
[1772120305053,42.53988502,85.88,85.74,8.36837833]
[1772120305054,34.17150669,85.859,85.771,33.15776305]
[1772120305248,34.17150669,85.839,85.771,33.15776305]
[1772120305452,10.4843,85.84,85.779,10.4917]
[1772120305653,34.17150669,85.859,85.78,33.15776305]
[1772120305851,10.4863,85.824,85.78,33.15776305]
[1772120306047,34.17150669,85.859,85.78,33.15776305]
[1772120306645,33.08413857,85.789,85.722,53.48086139]
[1772120306850,8.36837833,85.79,85.723,33.48086139]
[1772120307046,10.4907,85.788,85.725,33.48086139]
[1772120307751,33.08413857,85.789,85.722,20.0]
[1772120308351,10.4941,85.76,85.722,20.0]
[1772120308850,10.4938,85.763,85.722,20.0]
[1772120309352,20.9746,85.816,85.686,33.48086139]
[1772120309353,10.4957,85.747,85.686,33.48086139]
[1772120310450,33.08413857,85.792,85.686,33.48086139]
[1772120310853,10.4913,85.783,85.7,33.48086139]
[1772120311154,33.08413857,85.814,85.7,33.48086139]
[1772120311353,33.08413857,85.814,85.711,33.48086139]
[1772120311550,10.4855,85.83,85.75,33.48086139]
[1772120311752,33.08413857,85.839,85.75,33.48086139]
[1772120312553,10.4857,85.829,85.752,33.48086139]
[1772120312948,33.08413857,85.839,85.73,32.09921087]
[1772120312949,10.4869,85.819,85.754,33.48086139]
[1772120313353,33.08413857,85.839,85.754,33.48086139]
[1772120314657,33.08413857,85.818,85.731,33.48086139]
[1772120315055,33.08413857,85.818,85.733,33.48086139]
[1772120315849,10.489,85.802,85.733,33.48086139]
[1772120316051,33.08413857,85.818,85.733,33.48086139]
[1772120316262,10.4895,85.798,85.733,33.48086139]
[1772120316459,33.08413857,85.818,85.733,33.48086139]
[1772120317461,33.05189946,85.849,85.733,33.48086139]
[1772120317664,33.05189946,85.847,85.733,33.48086139]
[1772120317856,10.4849,85.835,85.76,10.494]
[1772120318059,33.05189946,85.847,85.761,32.31820897]
[1772120319257,33.05189946,85.847,85.74,32.09921087]
[1772120319258,10.4836,85.846,85.773,32.31820897]
[1772120319962,33.05189946,85.847,85.773,32.31820897]
[1772120320167,33.05189946,85.873,85.773,32.31820897]
[1772120320766,33.05189946,85.873,85.802,10.4888]
[1772120321466,33.05189946,85.873,85.794,32.31820897]
[1772120322567,10.4817,85.862,85.794,32.31820897]
[1772120322762,33.05189946,85.873,85.794,32.31820897]
[1772120323860,33.05189946,85.901,85.803,32.31820897]
[1772120324665,33.05189946,85.901,85.812,32.31820897]
[1772120325771,10.479,85.884,85.827,32.31820897]
[1772120326562,10.4779,85.893,85.83,32.31820897]
[1772120327362,10.4779,85.893,85.837,32.31820897]
[1772120327564,33.05189946,85.95,85.841,32.31820897]
[1772120328669,33.05189946,85.95,85.865,32.31820897]
[1772120329364,33.05189946,85.95,85.867,32.31820897]
[1772120330164,33.05189946,85.948,85.867,32.31820897]
[1772120331574,8.35865488,85.98,85.881,32.31820897]
[1772120331979,33.05189946,85.987,85.92,8.35865488]
[1772120332179,33.05189946,86.019,85.921,32.31820897]
[1772120332576,10.4656,85.994,85.93,42.79140897]
[1772120332871,33.05189946,86.019,85.93,32.31820897]
[1772120333072,33.05189946,86.019,85.941,32.31820897]
[1772120333475,10.4641,86.006,85.943,10.4716]
[1772120333773,33.05189946,86.019,85.943,10.4716]
[1772120334168,43.51589946,86.007,85.941,32.31820897]
[1772120334373,33.05189946,85.999,85.92,32.31820897]
[1772120334966,10.4669,85.983,85.92,32.31820897]
[1772120335674,10.468,85.974,85.92,32.31820897]
[1772120335873,33.05189946,85.979,85.896,10.4774]
[1772120336174,10.4706,85.953,85.896,32.31820897]
[1772120336478,33.05189946,85.979,85.896,32.31820897]
[1772120337283,10.4705,85.953,85.896,32.31820897]
[1772120337977,10.4716,85.944,85.896,32.31820897]
[1772120338580,10.4703,85.955,85.896,32.31820897]
[1772120339172,10.4714,85.946,85.88,8.35865488]
[1772120339377,10.4714,85.946,85.876,31.39909133]
[1772120339378,33.69262217,85.959,85.876,31.39909133]
[1772120339982,10.4701,85.956,85.889,31.39909133]
[1772120340279,33.69262217,85.979,85.889,31.39909133]
[1772120340684,10.47,85.957,85.892,31.39909133]
[1772120340978,33.69262217,85.999,85.901,31.39909133]
[1772120341175,33.69262217,85.999,85.86,8.35865488]
[1772120341176,33.69262217,85.999,85.924,31.39909133]
[1772120342072,162.6941,86.049,85.92,8.35865488]
[1772120342073,42.05127705,86.02,85.926,31.39909133]
[1772120342378,42.05127705,86.02,85.92,8.35865488]
[1772120342379,33.69262217,86.019,85.941,31.39909133]
[1772120343078,10.4634,86.011,85.943,31.39909133]
[1772120343281,33.69262217,86.019,85.943,31.39909133]
[1772120343587,33.69262217,86.04,85.949,5.23411858]
[1772120343785,33.69262217,85.999,85.901,31.39909133]
[1772120343985,8.35865488,85.98,85.901,31.39909133]
[1772120344281,8.35865488,85.99,85.901,31.39909133]
[1772120344478,8.35865488,86.01,85.921,31.59069846]
[1772120344679,8.35865488,85.99,85.921,31.59069846]
[1772120344882,4.16088069,85.989,85.921,31.59069846]
[1772120345486,10.4672,85.98,85.921,31.59069846]
[1772120346181,10.4658,85.992,85.921,31.59069846]
[1772120347280,8.35865488,86.01,85.921,31.59069846]
[1772120347475,10.4671,85.981,85.921,31.59069846]
[1772120347880,10.4643,86.004,85.924,31.39909133]
[1772120348886,10.4643,86.004,85.927,31.39909133]
[1772120349091,6.64563424,86.029,85.931,31.39909133]
[1772120349388,8.35865488,86.01,85.931,31.39909133]
[1772120349581,10.4651,85.998,85.931,31.39909133]
[1772120349785,6.64563424,86.029,85.931,31.39909133]
[1772120350083,10.4637,86.009,85.946,31.41850362]
[1772120350588,10.4649,86.0,85.946,31.41850362]
[1772120351284,10.4659,85.991,85.946,31.41850362]
[1772120351479,4.60627774,86.019,85.946,31.41850362]
[1772120351685,4.60627774,86.019,85.921,31.43721279]
[1772120352089,10.4672,85.981,85.921,31.43721279]
[1772120352283,4.60627774,86.019,85.921,31.43721279]
[1772120352484,10.4669,85.983,85.921,31.43721279]
[1772120352684,4.58480387,86.009,85.921,31.43721279]
[1772120352888,8.35865488,86.03,85.941,31.43721006]
[1772120353083,10.4613,86.029,85.962,31.43721006]